Cogmind - Beta 13 @@@ ROGUE MODE // 2024.04.07 @ 19:55:01 Player: LEWiKK Result: Destroyed by YI-UF0 with YI-UF0's Doublenader Performance ------------- Evolutions (0) 0 Regions Visited (2) 400 Robots Destroyed (11) 55 Value Destroyed (174) 174 Prototype IDs (0) 0 Alien Tech Used (0) 0 Bonus (0) 0 TOTAL SCORE: 629 Bonus ------- None Cogmind --------- Core Integrity 0/250 Matter 296/300 Energy 125/125 System Corruption 0% Temperature Cool (0) Movement Walking (260) Ox2 Location -10/Mines Parts ------- > --- POWER (1) -------- Light Ion Engine > --- PROPULSION (2) --- Aluminum Leg Aluminum Leg > --- UTILITY (2) ------ High-capacity Storage Unit > --- WEAPON (2) ------- Light Assault Rifle Light Assault Rifle > --- INVENTORY (20) --- Light Ion Engine Light Ion Engine Aluminum Leg Aluminum Leg Structural Scanner Light Cannon Grenade Launcher Peak State ------------ > --- POWER ------------ Ion Engine > --- PROPULSION ------- Aluminum Leg Aluminum Leg > --- UTILITY ---------- Small Storage Unit High-capacity Storage Unit > --- WEAPON ----------- Light Assault Rifle Light Assault Rifle > --- INVENTORY -------- Ion Engine Light Ion Engine Light Cannon Light Cannon [Rating: 7] Favorites ----------- Power Light Ion Engine Engine Light Ion Engine Propulsion Aluminum Leg Leg Aluminum Leg Utility High-capacity Storage Unit Device Structural Scanner Storage High-capacity Storage Unit Protection Light Armor Plating Weapon Light Assault Rifle Ballistic Gun Light Assault Rifle Build | -11 -10 -10 ------- Run | Yrd Mat Min Slots Evolved . | . . . Power . | . . . Propulsion . | . . . Utility . | . . . Weapon . | . . . Parts Attached 16 | 5 3 8 Power 4 | 1 1 2 Engine 4 | 1 1 2 Core . | . . . Reactor . | . . . Propulsion 5 | 2 . 3 Treads . | . . . Leg 5 | 2 . 3 Wheel . | . . . Hover . | . . . Flight . | . . . Utility 4 | 1 1 2 Device 1 | . . 1 Storage 2 | 1 1 . Processor . | . . . Hackware . | . . . Protection 1 | . . 1 Artifact . | . . . Weapon 3 | 1 1 1 Energy Gun . | . . . Energy Cannon . | . . . Ballistic Gun 3 | 1 1 1 Ballistic Cannon . | . . . Launcher . | . . . Special Weapon . | . . . Impact Weapon . | . . . Slashing Weapon . | . . . Piercing Weapon . | . . . Special Melee Weapon . | . . . Unidentified Prototypes . | . . . Parts Lost 6 | . 1 5 Power 2 | . 1 1 Propulsion 2 | . . 2 Utility 1 | . . 1 Weapon 1 | . . 1 Highest Loss Streak 2 | . 1 2 To Critical Strikes . | . . . Average Slot Usage (%) 89 | . 81 92 Engine 13 | . 12 14 Leg 28 | . 28 28 Device 4 | . . 5 Storage 14 | . 14 14 Protection 1 | . . 1 Ballistic Gun 27 | . 25 28 Naked Turns . | . . . Heaviest Build 48 | 11 47 48 Greatest Support 20 | 20 20 20 Greatest Overweight (x) 3 | 3 2 2 Average Overweight (x) 1 | . . 2 Largest Inventory Capacity 20 | 8 20 20 Average Capacity 18 | 7 15 20 Most Carried 7 | 2 6 7 Average Carried 5 | 1 3 6 Final Capacity 20 | 8 20 20 Final Carried 7 | 1 6 7 Class Distribution -------------------- 63% | Mutant 36% | Scavenger-Mutant Dominant Class ---------------- Mutant | -10/Materials Scavenger-Mutant | -10/Mines Resources | -11 -10 -10 ----------- Run | Yrd Mat Min Matter Collected 465 | 157 181 127 Remotely . | . . . Salvage Created 418 | . 260 158 Parts 19 | . 19 . Haulers Intercepted . | . . . Recyclers Shooed . | . . . Parts Field Recycled . | . . . Retrieved Matter . | . . . Parts Self-Destructed . | . . . Prevented . | . . . Kills | -11 -10 -10 ------- Run | Yrd Mat Min Combat Hostiles Destroyed 15 | . 9 6 Guns 15 | . 9 6 Classes Destroyed 4 | . 3 1 Recycler 2 | . 1 1 Swarmer 6 | . 6 . Grunt 3 | . 3 . Assembled 6 | . . 6 Best Kill Streak 3 | . 3 3 Combat Bots Only 3 | . 3 2 Max Kills in Single Turn 1 | . 1 1 Gunslinging . | . . . Exploded . | . . . Melee . | . . . Uniques/NPCs Destroyed . | . . . Combat | -11 -10 -10 -------- Run | Yrd Mat Min Hostile Shots Fired 86 | . 54 32 Missed 18 | . 9 9 Damage Taken 927 | . 405 522 Core 268 | . 114 154 Absorbed by Shields . | . . . Core Remaining (%) 100 | 100 . . Volleys Fired 72 | . 39 33 Largest 2 | . 2 2 Hottest 40 | . 40 40 Shots Fired 129 | . 63 66 Gun 129 | . 63 66 Cannon . | . . . Launcher . | . . . Special . | . . . Kinetic 129 | . 63 66 Thermal . | . . . Explosive . | . . . Electromagnetic . | . . . Robot Hit Streak 10 | . 10 5 Robot Miss Streak 5 | . 3 5 Penetration Max . | . . . Secondary Targets 2 | . 1 1 Max Gunslinging Chain 1 | . 1 1 Shots Hit Robots 74 | . 43 31 Core Hits 36 | . 20 16 Critical Kills . | . . . Critical Parts Destroyed . | . . . Critical Strikes . | . . . Melee Attacks . | . . . Impact . | . . . Slashing . | . . . Piercing . | . . . Sneak Attacks . | . . . Combat Hostiles . | . . . Follow-up Attacks . | . . . Damage Inflicted 602 | . 345 257 Guns 602 | . 345 257 Cannons . | . . . Explosions . | . . . Melee . | . . . Ramming . | . . . Kinetic 602 | . 345 257 Thermal . | . . . Explosive . | . . . Electromagnetic . | . . . Impact . | . . . Slashing . | . . . Piercing . | . . . Highest Corruption . | . . . Average Corruption . | . . . Corruption Purged . | . . . Corruption Blocked . | . . . Overload Shots . | . . . Overflow Damage . | . . . Projectiles . | . . . Explosions . | . . . Melee . | . . . Knockbacks . | . . . Impact . | . . . Kinetic . | . . . Secondary . | . . . Self-Inflicted Damage . | . . . Shots . | . . . Rammed . | . . . Targets Rammed . | . . . Kicked . | . . . Crushed . | . . . Highest Temperature 20 | . 12 20 Average Temperature 9 | . 7 20 Received Heat Transfer 122 | . 102 20 Siege Activations . | . . . Robots Corrupted . | . . . Combat Hostiles . | . . . Parts Fried . | . . . Impact Corruptions . | . . . Robots Melted . | . . . Combat Hostiles . | . . . Parts Melted . | . . . Heat Transferred . | . . . Parts Sabotaged . | . . . Parts Stolen . | . . . Parts Stripped . | . . . Power Chain Reactions . | . . . Alert | -11 -10 -10 ------- Run | Yrd Mat Min Peak Influence 270 | . 270 105 Initial 105 | . . 105 Average 62 | . 131 39 Maximum Alert Level 1 | . 1 . Low Security (%) 90 | 100 64 100 Level 1 9 | . 35 . Level 2 . | . . . Level 3 . | . . . Level 4 . | . . . Level 5 . | . . . High Security . | . . . Max Security . | . . . Squads Dispatched 1 | . 1 . Investigation 1 | . 1 . Extermination . | . . . Reinforcement . | . . . Assault . | . . . Garrison . | . . . Intercept . | . . . Searches Triggered . | . . . Construction Impeded . | . . . Haulers Reinforced . | . . . Active Scanning Responses . | . . . Cargo Convoy Interrupts . | . . . Stealth | -11 -10 -10 --------- Run | Yrd Mat Min Distress Signals 1 | . 1 . Communications Jammed . | . . . Distress Signals . | . . . Times Spotted 19 | . 12 7 Peak Tracking Total 4 | . 4 1 Tactical Retreats 1 | . 1 . Traps | -11 -10 -10 ------- Run | Yrd Mat Min Traps Triggered 1 | . 1 . Indirectly . | . . . Trap Hack Attempts . | . . . Triggered . | . . . Disarmed . | . . . Reprogrammed . | . . . Reused . | . . . Traps Extracted . | . . . Installed . | . . . Triggered . | . . . Machines | -11 -10 -10 ---------- Run | Yrd Mat Min Machines Disabled . | . . . Max in Single Turn . | . . . Machines Repaired . | . . . Machines Dismantled . | . . . Machines Sabotaged . | . . . Overloaded Fab Kills . | . . . Hacking | -11 -10 -10 --------- Run | Yrd Mat Min Machines Accessed 1 | . 1 . Terminals 1 | . 1 . Fabricators . | . . . Repair Stations . | . . . Recycling Units . | . . . Scanalyzers . | . . . Garrison Access . | . . . Total Hacks 2 | . 2 . Successful 1 | . 1 . Failed 1 | . 1 . Catastrophic . | . . . Database Lockouts . | . . . Manual 2 | . 2 . Terminals 2 | . 2 . Fabricators . | . . . Repair Stations . | . . . Recycling Units . | . . . Scanalyzers . | . . . Garrison Access . | . . . Terminal Hacks . | . . . Fabricator Hacks . | . . . Repair Station Hacks . | . . . Recycling Unit Hacks . | . . . Scanalyzer . | . . . Garrison Access Hacks . | . . . Unauthorized Hacks 1 | . 1 . Terminals 1 | . 1 . Botnet 1 | . 1 . Fabricators . | . . . Repair Stations . | . . . Recycling Units . | . . . Scanalyzers . | . . . Garrison Access . | . . . Data Cores Recovered . | . . . Used . | . . . Hacking Detections 1 | . 1 . Full Trace Events . | . . . Feedback Events . | . . . Feedback Blocked . | . . . Robot Schematics Acquired . | . . . Robots Built . | . . . Authchips . | . . . Time . | . . . Total Robot Build Rating . | . . . Part Schematics Acquired . | . . . Parts Built . | . . . Authchips . | . . . Time . | . . . Total Part Build Rating . | . . . Parts Repaired . | . . . Time . | . . . Parts Recycled . | . . . Recycled Matter . | . . . Retrieved Matter . | . . . Retrieved Components . | . . . Parts Scanalyzed . | . . . Part Schematics Acquired . | . . . Parts Damaged . | . . . Bothacking | -11 -10 -10 ------------ Run | Yrd Mat Min Used RIF Installer . | . . . Robots Hacked . | . . . Non-combat . | . . . Combat . | . . . Robot Hacks Applied . | . . . Relay Couplers Released . | . . . Fabnet Peak Effective % . | . . . Robots Rewired . | . . . Allies Hacked . | . . . Hacks Repelled . | . . . Allies | -11 -10 -10 -------- Run | Yrd Mat Min Total Allies . | . . . Largest Group . | . . . Highest-Rated Group . | . . . Highest-Rated Ally . | . . . Total Orders . | . . . Ally Attacks . | . . . Total Damage . | . . . Kills . | . . . Allies Corrupted . | . . . Allies Melted . | . . . Intel | -11 -10 -10 ------- Run | Yrd Mat Min Robot Analysis Total . | . . . Derelict Logs Recovered 3 | . . 3 Drone Launches . | . . . Drone Recoveries . | . . . Exploration | -11 -10 -10 ------------- Run | Yrd Mat Min Turns Passed 1520 | 55 398 1067 Spaces Moved 559 | 36 164 359 Core 8 | 8 . . Treads . | . . . Legs 551 | 28 164 359 Wheels . | . . . Hover . | . . . Flight . | . . . Fastest Speed 50 | 50 120 260 Average Speed 225 | 125 172 260 Slowest Speed 260 | 200 260 260 Overloaded Moves . | . . . Propulsion Burnouts . | . . . Robots Hopped . | . . . Cave-ins Triggered . | . . . Exploration Rate (%) 41 | 4 31 90 Regions Visited 2 Branch Regions 1 Pre-discovered Areas 2 | . . 2 Known Exits Taken . | . . . Unknown Exits Taken 2 | 1 1 . Scrap Searched 1 | . . 1 Spaces Dug . | . . . Terrain Destroyed . | . . . Melee . | . . . Projectile . | . . . AOE . | . . . Terrain Rammed . | . . . Walls Destroyed . | . . . Machines Disabled . | . . . Actions | -11 -10 -10 --------- Run | Yrd Mat Min Total 718 | 46 232 440 Wait 46 | . 14 32 Move 557 | 35 163 359 Hop . | . . . Pick Up 23 | 6 10 7 Fast Attach . | . . . Attach 13 | 5 3 5 Detach . | . . . Swap 3 | . . 3 Drop 4 | . 3 1 Fire 72 | . 39 33 Melee . | . . . Ram . | . . . Kick . | . . . Crush . | . . . Escape Stasis . | . . . Rewire . | . . . Trap . | . . . Miscellaneous . | . . . Route ------- -11/Scrapyard -10/Materials -10/Mines (discovered 2 exits: [*Mat x2]) History --------- Turn | Location | Event 10 | -11/Scrapyard | Discovered new exit (range 16) 56 | -11/Scrapyard | Entered Materials 138 | -10/Materials | Discovered new exit (range 16) 314 | -10/Materials | Build established: Mutant 454 | -10/Materials | Entered Mines 455 | -10/Mines | YI-UF0 nonchalantly dropped a Grenade Launcher on the ground 566 | -10/Mines | Assembled infested the area 571 | -10/Mines | Assisted by a Guerilla fighting off Assembled 809 | -10/Mines | Discovered new exit (range 8) 845 | -10/Mines | Learned location of Zion (-6) 909 | -10/Mines | Core integrity fell below 50% 956 | -10/Mines | Learned Materials terminal intel 982 | -10/Mines | Learned location of Storage (-7) 997 | -10/Mines | Discovered new exit (range 5) 1266 | -10/Mines | Build established: Scavenger-Mutant 1329 | -10/Mines | Learned Materials non-interactive machine intel 1518 | -10/Mines | Core integrity fell below 20% 1521 | -10/Mines | Destroyed by YI-UF0 with YI-UF0's Doublenader Last Messages --------------- Found Tractor Beam. Found 30 Matter. T-07 Excavator is excavating. K-01 Serf collects debris. Acquired derelict log, extracted data. Data stored: Materials non-interactive machine intel. K-01 Serf collects debris. as-47549 destroyed. The unstable cave ceiling collapses. Acquired Lgt. Armor Plating. Acquired 26 matter. U-05 Engineer builds a Wall. K-01 Serf collects debris. U-05 Engineer lays Concrete. K-01 Serf collects debris. The unstable cave ceiling collapses. YI-UF0 mumbles something. Lgt. Armor Plating destroyed. The unstable cave ceiling collapses. Map ----- +----------------------------------------------------+ | ?????# #???????????????????????????????## ##???? | | ?????# ##??????????????????????????????## ##???? | | ?????# ##????###??????????????????????## ####?? | | ###### ##?## ##????????????????????### #####? | | # ### #???????????????????#### ###? | | # #### #?????????#????????#### ##? | | ??????## #???????? ?????????### ##? | | ???????# #??????? ?????????## ###? | | ???????## """ #?????? ?????????## ###? | | ????????## """ #?????? ??????????## ###? | | ?????????## """ #?????? #??????????### #### | | ??????????## """ #????? #??????????#### ### | | ???????????## #????? ##??????????#### | | ????????????### #??## #???????????### | | ???????######### ### #????????????## | | ???????# #?????????????### | | ???????# #????????????##### ## | | ???????# ###### ####?????????##### ### | | ???????????????# #?????????### ### | | ???????????????## = # #?????????## #### | | ?????????????#??## # # #?????????## " ####= | | ???????????? ##??# ###???????## | | ???????????? #??# ##??????### | | ???????????? ##?## ## ######?#### % #### | | ???????????? ##?# g # ####### ### | | ???????????? #?????# @ # # #### ## | | ???????????# #????# ! # ### ### | | ?????????## #???# ! ######## | | ?????????# #???## % ! % ###### | | ?????????# #????# |= ###### | | ????????## ##???# = ## ## # | | ??????### ##??## ### # # | | ???#### """ #???### = ##?## = !## | | ??## """ #?????## ##!|##??## |*%% % | | ### ## """ #???????#####%#???### !%=*= ##== | | # #### ###???????????#!#????## # % | | ##??#### #?############# #????### ###!% | | ##??????# #?# #?????## # != | | #???????# #?# #############?????## # = | | # ##???????# #?# #?????????????????# * ! # | | | ####????????# #?# #?????????????????# ! !* | | ????????????# #?# #?????????????????### = % | | ????????????# #?# #????????????###????#### #! | | ????????????# ### ###?????????## #???## ## ! | | ????????????# #????????## #### # | | ????????????# #????????## ! ! | | ??????????######### ########### % * % | | ??????????# ### | | ??????????# ## * " | | ??????????# ## ? # #% ! | +----------------------------------------------------+ Best States ------------- Heat Dissipation 25 Energy Generation 10 Energy Capacity 250 Matter Stores 300 Matter Capacity 300 Sight Range 16 Terrain Scan Density 10 Armor Coverage 150 Evasion (%) 55 Item Schematics ----------------- None Robot Schematics ------------------ None Fabricated ------------ Nothing Alien Tech Used ----------------- None Achievements -------------- None Challenges ------------ None Game ------ Seed IonicSalvageKinecellerator Manual? 0 Play Time 00:16:19 Cumulative 17.9 hours Start 2024.04.07 @ 19:41:11 End 2024.04.07 @ 19:55:01 Sessions 1 Manual Loads 0 Difficulty Rogue Special Mode None Game No. 15 Rogue 15 Adventurer 0 Explorer 0 Win Type - Total 0 Types 0/0/0/0/0/0/0/0/0 Lore% 17 Gallery% 14 Achievement% 16 Wizard Run 0 Options --------- Layout 1 ASCII 0 Keyboard 0 Movement Mouse Keybinds 0 Fullscreen 2 Font 20/SmallcapsGlow Map View 54x42 Zoom Use 0% Tactical HUD 0 Map Filters NONE Filters NONE Steam 1 RUN: d1bb62c4-e405-4662-9aea-4e98f82f7afb